[Event "*** Titled Tuesday Blitz"]
[Site "Chess.com"]
[Date "2020.05.12"]
[Round "4"]
[White "Arjun2002"]
[Black "mamey78"]
[Result "1-0"]
[WhiteElo "2667"]
[BlackElo "2354"]
[TimeControl "180+1"]
[EndTime "10:37:52 PDT"]
[Termination "Arjun2002 won by resignation"]

1. e4 {[%clk 0:03:00.9]} 1... e5 {[%clk 0:02:59.2]} 2. Nf3 {[%clk 0:03:00.3]}
2... Nc6 {[%clk 0:02:59.1]} 3. Bc4 {[%clk 0:03:00.1]} 3... Nf6 {[%clk
0:02:57.9]} 4. d3 {[%clk 0:02:59.6]} 4... Be7 {[%clk 0:02:55.7]} 5. O-O {[%clk
0:02:58.7]} 5... O-O {[%clk 0:02:54.2]} 6. Re1 {[%clk 0:02:58.3]} 6... d6 {[%clk
0:02:53.5]} 7. a4 {[%clk 0:02:57.1]} 7... Kh8 {[%clk 0:02:52.4]} 8. h3 {[%clk
0:02:52.3]} 8... Ng8 {[%clk 0:02:51.3]} 9. Nc3 {[%clk 0:02:52.5]} 9... f5 {[%clk
0:02:51.2]} 10. Nd5 {[%clk 0:02:52.8]} 10... fxe4 {[%clk 0:02:50.9]} 11. dxe4
{[%clk 0:02:52.8]} 11... Nf6 {[%clk 0:02:49.4]} 12. Ng5 {[%clk 0:02:29.9]} 12...
Nxd5 {[%clk 0:02:46.7]} 13. Nxh7 {[%clk 0:02:30.1]} 13... Rf4 {[%clk 0:02:46.9]}
14. Nf8 {[%clk 0:01:20.8]} 14... Qe8 {[%clk 0:01:56.7]} 15. Bxf4 {[%clk
0:01:07.9]} 15... Nxf4 {[%clk 0:01:54.1]} 16. g3 {[%clk 0:01:07]} 16... Nxh3+
{[%clk 0:01:45.9]} 17. Kg2 {[%clk 0:01:07.3]} 17... Bxf8 {[%clk 0:01:41.5]} 18.
Rh1 {[%clk 0:01:07]} 18... Qg6 {[%clk 0:01:10.2]} 19. f3 {[%clk 0:01:05.7]}
19... Nd4 {[%clk 0:00:38.8]} 20. c3 {[%clk 0:01:02.3]} 20... Be6 {[%clk
0:00:22.3]} 21. Bxe6 {[%clk 0:00:53.7]} 21... Nxe6 {[%clk 0:00:22.4]} 22. Rxh3+
{[%clk 0:00:54]} 22... Kg8 {[%clk 0:00:22.6]} 23. Qb3 {[%clk 0:00:53.7]} 23...
Be7 {[%clk 0:00:18.2]} 24. Rah1 {[%clk 0:00:51.1]} 24... b6 {[%clk 0:00:15.5]}
25. Rh8+ {[%clk 0:00:49.4]} 25... Kf7 {[%clk 0:00:14.8]} 26. Rxa8 {[%clk
0:00:49.2]} 26... Qg5 {[%clk 0:00:13.1]} 1-0

[Event "*** Titled Tuesday Blitz"]
[Site "Chess.com"]
[Date "2020.05.12"]
[Round "4"]
[White "aNaartjieZA"]
[Black "smshk35"]
[Result "1-0"]
[WhiteElo "2600"]
[BlackElo "2397"]
[TimeControl "180+1"]
[EndTime "10:37:58 PDT"]
[Termination "aNaartjieZA won by resignation"]

1. e4 {[%clk 0:03:00.9]} 1... c5 {[%clk 0:02:59.7]} 2. Nf3 {[%clk 0:03:00.9]}
2... e6 {[%clk 0:02:52.2]} 3. d3 {[%clk 0:03:00.6]} 3... d5 {[%clk 0:02:51.4]}
4. Nbd2 {[%clk 0:03:00.7]} 4... Nc6 {[%clk 0:02:50.6]} 5. g3 {[%clk 0:03:00.8]}
5... Bd6 {[%clk 0:02:50.5]} 6. Bg2 {[%clk 0:03:01.1]} 6... Nge7 {[%clk
0:02:50.8]} 7. O-O {[%clk 0:03:01.7]} 7... b6 {[%clk 0:02:32.1]} 8. Nh4 {[%clk
0:02:56.8]} 8... Bb7 {[%clk 0:02:31.4]} 9. f4 {[%clk 0:02:56.2]} 9... Bc7 {[%clk
0:02:26.2]} 10. f5 {[%clk 0:02:53.6]} 10... exf5 {[%clk 0:02:08.6]} 11. exd5
{[%clk 0:02:50.6]} 11... Nxd5 {[%clk 0:02:02]} 12. Re1+ {[%clk 0:02:34]} 12...
Nce7 {[%clk 0:01:55.9]} 13. Nxf5 {[%clk 0:02:32]} 13... Rb8 {[%clk 0:00:43.9]}
14. Nxg7+ {[%clk 0:01:12.9]} 14... Kf8 {[%clk 0:00:43.2]} 15. Nh5 {[%clk
0:01:11.1]} 15... Rg8 {[%clk 0:00:20.1]} 16. Ne4 {[%clk 0:01:09.4]} 16... Rg6
{[%clk 0:00:20]} 17. Rf1 {[%clk 0:00:58.7]} 17... Kg8 {[%clk 0:00:19.5]} 18.
Nef6+ {[%clk 0:00:50.9]} 18... Nxf6 {[%clk 0:00:19.4]} 19. Nxf6+ {[%clk
0:00:50.7]} 19... Kg7 {[%clk 0:00:14.8]} 20. Nh5+ {[%clk 0:00:50.3]} 20... Kg8
{[%clk 0:00:13.5]} 21. Bxb7 {[%clk 0:00:49.9]} 21... Rxb7 {[%clk 0:00:14.4]} 22.
Qf3 {[%clk 0:00:49.4]} 22... Qd5 {[%clk 0:00:11.6]} 23. Nf6+ {[%clk 0:00:46.2]}
23... Rxf6 {[%clk 0:00:12.1]} 24. Qxf6 {[%clk 0:00:46.1]} 24... Be5 {[%clk
0:00:10.8]} 25. Qf3 {[%clk 0:00:36.8]} 25... Qd7 {[%clk 0:00:08.9]} 1-0

[Event "*** Titled Tuesday Blitz"]
[Site "Chess.com"]
[Date "2020.05.12"]
[Round "4"]
[White "Steven_Rojas"]
[Black "Sethu0025"]
[Result "0-1"]
[WhiteElo "2350"]
[BlackElo "2741"]
[TimeControl "180+1"]
[EndTime "10:37:59 PDT"]
[Termination "Sethu0025 won by resignation"]

1. c4 {[%clk 0:03:00.9]} 1... e5 {[%clk 0:02:58.3]} 2. Nc3 {[%clk 0:03:01.1]}
2... Nf6 {[%clk 0:02:58]} 3. Nf3 {[%clk 0:03:01.5]} 3... Nc6 {[%clk 0:02:57.9]}
4. e3 {[%clk 0:03:02.1]} 4... Bb4 {[%clk 0:02:56.2]} 5. Qc2 {[%clk 0:03:02.6]}
5... Bxc3 {[%clk 0:02:53.1]} 6. Qxc3 {[%clk 0:03:02.5]} 6... Qe7 {[%clk
0:02:52.8]} 7. d4 {[%clk 0:03:03.1]} 7... Ne4 {[%clk 0:02:46.1]} 8. Qd3 {[%clk
0:03:03.5]} 8... exd4 {[%clk 0:02:42.8]} 9. Nxd4 {[%clk 0:03:04.4]} 9... O-O
{[%clk 0:02:36.4]} 10. Be2 {[%clk 0:03:04.3]} 10... Qb4+ {[%clk 0:02:31.9]} 11.
Kf1 {[%clk 0:03:04.2]} 11... Qe7 {[%clk 0:02:29]} 12. Nxc6 {[%clk 0:03:01.8]}
12... dxc6 {[%clk 0:02:23.5]} 13. f3 {[%clk 0:03:02.2]} 13... Nc5 {[%clk
0:02:22.3]} 14. Qc3 {[%clk 0:02:56.8]} 14... Be6 {[%clk 0:02:10.9]} 15. b3
{[%clk 0:02:55.3]} 15... a5 {[%clk 0:02:08]} 16. Bb2 {[%clk 0:02:53.5]} 16... f6
{[%clk 0:02:07.9]} 17. Kf2 {[%clk 0:02:45]} 17... Rfd8 {[%clk 0:02:07.4]} 18.
Rad1 {[%clk 0:02:37.9]} 18... b6 {[%clk 0:02:02.6]} 19. Rhe1 {[%clk 0:02:33.8]}
19... Bf7 {[%clk 0:01:45]} 20. Bf1 {[%clk 0:02:30.8]} 20... Rd7 {[%clk
0:01:35.1]} 21. Rxd7 {[%clk 0:02:30]} 21... Qxd7 {[%clk 0:01:35.2]} 22. Qd4
{[%clk 0:02:20.7]} 22... Qe7 {[%clk 0:01:30.2]} 23. Rd1 {[%clk 0:02:18.7]} 23...
a4 {[%clk 0:01:29.1]} 24. Qc3 {[%clk 0:01:34.8]} 24... axb3 {[%clk 0:01:26.1]}
25. axb3 {[%clk 0:01:35.7]} 25... Be6 {[%clk 0:01:13.6]} 26. g3 {[%clk
0:01:28.5]} 26... h5 {[%clk 0:01:08]} 27. Bg2 {[%clk 0:01:25.2]} 27... Ra2
{[%clk 0:01:01.8]} 28. Rd2 {[%clk 0:01:22.5]} 28... Bf5 {[%clk 0:00:55.2]} 29.
e4 {[%clk 0:01:17.8]} 29... Bg6 {[%clk 0:00:55.4]} 30. Qe3 {[%clk 0:01:14.4]}
30... Kh7 {[%clk 0:00:52.8]} 31. h4 {[%clk 0:01:06.4]} 31... b5 {[%clk
0:00:48.4]} 32. Re2 {[%clk 0:01:02.8]} 32... Qd6 {[%clk 0:00:41.7]} 33. b4
{[%clk 0:00:50.1]} 33... Nd3+ {[%clk 0:00:40]} 34. Kg1 {[%clk 0:00:26.1]} 34...
Rxb2 {[%clk 0:00:39.6]} 0-1

[Event "*** Titled Tuesday Blitz"]
[Site "Chess.com"]
[Date "2020.05.12"]
[Round "4"]
[White "Vusatiuk_Vladimir"]
[Black "GM_LOADING"]
[Result "1-0"]
[WhiteElo "2322"]
[BlackElo "2465"]
[TimeControl "180+1"]
[EndTime "10:38:01 PDT"]
[Termination "Vusatiuk_Vladimir won by resignation"]

1. e4 {[%clk 0:03:00.9]} 1... e5 {[%clk 0:02:59.3]} 2. Nf3 {[%clk 0:02:58.4]}
2... Nc6 {[%clk 0:02:59.6]} 3. d4 {[%clk 0:02:58.9]} 3... exd4 {[%clk
0:02:59.6]} 4. Nxd4 {[%clk 0:02:59.8]} 4... Nf6 {[%clk 0:03:00.1]} 5. Nxc6
{[%clk 0:02:59.9]} 5... bxc6 {[%clk 0:03:01]} 6. e5 {[%clk 0:03:00.2]} 6... Qe7
{[%clk 0:03:01.6]} 7. Qe2 {[%clk 0:03:00.7]} 7... Nd5 {[%clk 0:03:02.1]} 8. h4
{[%clk 0:03:01.4]} 8... Qe6 {[%clk 0:02:59.5]} 9. Nd2 {[%clk 0:02:58.6]} 9...
Nb4 {[%clk 0:02:31.8]} 10. Nf3 {[%clk 0:02:22]} 10... Ba6 {[%clk 0:02:30.2]} 11.
c4 {[%clk 0:02:12.7]} 11... d5 {[%clk 0:01:58.8]} 12. Nd4 {[%clk 0:01:55.3]}
12... Qd7 {[%clk 0:01:55.4]} 13. e6 {[%clk 0:00:49.5]} 13... fxe6 {[%clk
0:01:52.9]} 14. Nxe6 {[%clk 0:00:50.4]} 14... Bxc4 {[%clk 0:01:48.2]} 15. Qh5+
{[%clk 0:00:36.3]} 15... g6 {[%clk 0:00:11.9]} 16. Qe5 {[%clk 0:00:34.1]} 16...
Qe7 {[%clk 0:00:12.2]} 17. Bg5 {[%clk 0:00:31.4]} 17... Nc2+ {[%clk 0:00:11.2]}
18. Kd1 {[%clk 0:00:27.7]} 18... Nxa1 {[%clk 0:00:11.3]} 19. Bxe7 {[%clk
0:00:26]} 19... Bxe7 {[%clk 0:00:12.2]} 20. Qxh8+ {[%clk 0:00:24.2]} 20... Kd7
{[%clk 0:00:07.8]} 21. Qxa8 {[%clk 0:00:23.3]} 1-0

[Event "*** Titled Tuesday Blitz"]
[Site "Chess.com"]
[Date "2020.05.12"]
[Round "4"]
[White "wonderfultime"]
[Black "Quaternitychess"]
[Result "0-1"]
[WhiteElo "2931"]
[BlackElo "2594"]
[TimeControl "180+1"]
[EndTime "10:38:03 PDT"]
[Termination "Quaternitychess won on time"]

1. d4 {[%clk 0:03:00.8]} 1... d5 {[%clk 0:02:59.9]} 2. Nf3 {[%clk 0:02:59.7]}
2... Bf5 {[%clk 0:02:58]} 3. Bf4 {[%clk 0:02:53.7]} 3... e6 {[%clk 0:02:58.2]}
4. e3 {[%clk 0:02:53.9]} 4... Bd6 {[%clk 0:02:58.9]} 5. Bg3 {[%clk 0:02:49.9]}
5... Nf6 {[%clk 0:02:59.4]} 6. Bd3 {[%clk 0:02:46]} 6... Ne4 {[%clk 0:02:59.2]}
7. c4 {[%clk 0:02:38.3]} 7... c6 {[%clk 0:02:56.7]} 8. O-O {[%clk 0:02:37.8]}
8... Nxg3 {[%clk 0:02:51.4]} 9. hxg3 {[%clk 0:02:37.9]} 9... Bg4 {[%clk
0:02:50.8]} 10. Nc3 {[%clk 0:02:36.6]} 10... Nd7 {[%clk 0:02:50.1]} 11. Qb3
{[%clk 0:02:35.6]} 11... Rb8 {[%clk 0:02:49.7]} 12. Rfe1 {[%clk 0:02:28]} 12...
O-O {[%clk 0:02:48.2]} 13. Rac1 {[%clk 0:02:26]} 13... Qf6 {[%clk 0:02:31.2]}
14. Nh2 {[%clk 0:02:05.6]} 14... Bh5 {[%clk 0:02:28.1]} 15. Be2 {[%clk 0:02:06]}
15... Bg6 {[%clk 0:02:26.5]} 16. Qd1 {[%clk 0:02:00.1]} 16... dxc4 {[%clk
0:02:13.4]} 17. Bxc4 {[%clk 0:02:00.1]} 17... e5 {[%clk 0:02:12.4]} 18. d5
{[%clk 0:01:54]} 18... e4 {[%clk 0:02:11.4]} 19. Rc2 {[%clk 0:01:28.8]} 19...
Ne5 {[%clk 0:01:49.4]} 20. Ng4 {[%clk 0:01:28.1]} 20... Qg5 {[%clk 0:01:46.6]}
21. Nxe5 {[%clk 0:01:27.9]} 21... Bxe5 {[%clk 0:01:47.5]} 22. dxc6 {[%clk
0:01:20.5]} 22... bxc6 {[%clk 0:01:48.4]} 23. Rd2 {[%clk 0:01:16.5]} 23... h5
{[%clk 0:01:46.1]} 24. Bb3 {[%clk 0:00:55.2]} 24... Rbd8 {[%clk 0:01:42]} 25.
Rxd8 {[%clk 0:00:51.8]} 25... Rxd8 {[%clk 0:01:40.8]} 26. Qe2 {[%clk 0:00:52.1]}
26... h4 {[%clk 0:01:39.5]} 27. gxh4 {[%clk 0:00:53]} 27... Qxh4 {[%clk
0:01:39.1]} 28. g3 {[%clk 0:00:53.7]} 28... Bxg3 {[%clk 0:01:38.9]} 29. fxg3
{[%clk 0:00:51.9]} 29... Qxg3+ {[%clk 0:01:39.8]} 30. Kf1 {[%clk 0:00:49]} 30...
Rd6 {[%clk 0:01:07.9]} 31. Qa6 {[%clk 0:00:04.4]} 31... Bf5 {[%clk 0:00:55.3]}
32. Bxf7+ {[%clk 0:00:02]} 32... Kh7 {[%clk 0:00:54.6]} 0-1

[Event "*** Titled Tuesday Blitz"]
[Site "Chess.com"]
[Date "2020.05.12"]
[Round "4"]
[White "ValeriyGrinev"]
[Black "czasnaszachy"]
[Result "1-0"]
[WhiteElo "2542"]
[BlackElo "2354"]
[TimeControl "180+1"]
[EndTime "10:38:03 PDT"]
[Termination "ValeriyGrinev won by resignation"]

1. c4 {[%clk 0:03:00.9]} 1... d6 {[%clk 0:02:44.4]} 2. Nc3 {[%clk 0:02:59]} 2...
g6 {[%clk 0:02:44.5]} 3. d4 {[%clk 0:02:54.9]} 3... Bg7 {[%clk 0:02:44.1]} 4. e4
{[%clk 0:02:54.7]} 4... Nf6 {[%clk 0:02:39]} 5. f3 {[%clk 0:02:54.7]} 5... O-O
{[%clk 0:02:27.7]} 6. Be3 {[%clk 0:02:54.2]} 6... Nc6 {[%clk 0:02:26.2]} 7. Qd2
{[%clk 0:02:53.5]} 7... a6 {[%clk 0:02:26]} 8. Rc1 {[%clk 0:02:50.4]} 8... e5
{[%clk 0:02:18]} 9. Nge2 {[%clk 0:02:48.3]} 9... exd4 {[%clk 0:02:02.2]} 10.
Nxd4 {[%clk 0:02:49.2]} 10... Nxd4 {[%clk 0:02:01.8]} 11. Bxd4 {[%clk
0:02:48.7]} 11... Rb8 {[%clk 0:01:57.3]} 12. Be2 {[%clk 0:02:39.9]} 12... Bd7
{[%clk 0:01:57]} 13. O-O {[%clk 0:02:30.2]} 13... b5 {[%clk 0:01:53.7]} 14. c5
{[%clk 0:02:30.7]} 14... Ne8 {[%clk 0:01:33.6]} 15. Bxg7 {[%clk 0:02:24.3]}
15... Kxg7 {[%clk 0:01:33.4]} 16. cxd6 {[%clk 0:02:24.4]} 16... Nxd6 {[%clk
0:01:33.2]} 17. Nd5 {[%clk 0:02:24.6]} 17... c6 {[%clk 0:01:19.3]} 18. Qd4+
{[%clk 0:02:22.6]} 18... f6 {[%clk 0:01:18.6]} 19. Nxf6 {[%clk 0:02:17]} 19...
Qxf6 {[%clk 0:01:00.9]} 20. e5 {[%clk 0:02:16.7]} 20... Qf4 {[%clk 0:00:26.6]}
21. Rfd1 {[%clk 0:01:54.4]} 21... Qxd4+ {[%clk 0:00:10.6]} 22. Rxd4 {[%clk
0:01:55.3]} 22... Nf5 {[%clk 0:00:04.8]} 23. Rxd7+ {[%clk 0:01:54.9]} 23... Rf7
{[%clk 0:00:05.3]} 24. Rxf7+ {[%clk 0:01:49.1]} 24... Kxf7 {[%clk 0:00:05.1]}
25. Rxc6 {[%clk 0:01:50]} 25... Nd4 {[%clk 0:00:03.5]} 26. Rc7+ {[%clk
0:01:48.5]} 26... Ke6 {[%clk 0:00:03.1]} 27. Bd3 {[%clk 0:01:48.3]} 27... Rd8
{[%clk 0:00:02.1]} 28. Kf2 {[%clk 0:01:42.8]} 28... Kxe5 {[%clk 0:00:02.3]} 29.
Rxh7 {[%clk 0:01:37.5]} 29... Nxf3 {[%clk 0:00:02.4]} 30. Bxg6 {[%clk
0:01:37.8]} 30... Ng5 {[%clk 0:00:01.8]} 31. Ra7 {[%clk 0:01:35.7]} 31... Rd2+
{[%clk 0:00:01.3]} 32. Kg3 {[%clk 0:01:36.1]} 32... Rxb2 {[%clk 0:00:01.5]} 33.
Rxa6 {[%clk 0:01:35]} 33... Ne4+ {[%clk 0:00:01.1]} 34. Bxe4 {[%clk 0:01:34.3]}
34... Kxe4 {[%clk 0:00:02]} 35. h4 {[%clk 0:01:34]} 35... Rc2 {[%clk 0:00:01.5]}
36. h5 {[%clk 0:01:33.7]} 36... Rc3+ {[%clk 0:00:01.5]} 37. Kg4 {[%clk 0:01:33]}
37... Rc7 {[%clk 0:00:02.4]} 38. h6 {[%clk 0:01:32.6]} 38... Ke3 {[%clk
0:00:02.8]} 39. Kh5 {[%clk 0:01:31.3]} 39... Kf4 {[%clk 0:00:03.1]} 40. g4
{[%clk 0:01:30.6]} 40... Rc5+ {[%clk 0:00:02.3]} 41. Kh4 {[%clk 0:01:30.9]}
41... Rc1 {[%clk 0:00:02.1]} 42. Rf6+ {[%clk 0:01:30.6]} 42... Ke5 {[%clk
0:00:01.9]} 43. g5 {[%clk 0:01:30.9]} 43... Rh1+ {[%clk 0:00:01.4]} 44. Kg4
{[%clk 0:01:31.1]} 44... Rg1+ {[%clk 0:00:02.2]} 45. Kh5 {[%clk 0:01:31.4]}
45... Rh1+ {[%clk 0:00:02.3]} 46. Kg6 {[%clk 0:01:31.9]} 46... b4 {[%clk
0:00:02.2]} 47. Rb6 {[%clk 0:01:30.8]} 47... Rh2 {[%clk 0:00:01.8]} 48. h7
{[%clk 0:01:30.3]} 48... Rxh7 {[%clk 0:00:01.3]} 49. Kxh7 {[%clk 0:01:30.3]} 1-0

[Event "*** Titled Tuesday Blitz"]
[Site "Chess.com"]
[Date "2020.05.12"]
[Round "4"]
[White "SahaNeelash"]
[Black "BIG_Pirate"]
[Result "1-0"]
[WhiteElo "2521"]
[BlackElo "2309"]
[TimeControl "180+1"]
[EndTime "10:38:03 PDT"]
[Termination "SahaNeelash won on time"]

1. d4 {[%clk 0:03:00.9]} 1... d5 {[%clk 0:02:59.4]} 2. Bf4 {[%clk 0:03:00.7]}
2... Nf6 {[%clk 0:02:58.5]} 3. e3 {[%clk 0:03:00.9]} 3... c5 {[%clk 0:02:58.6]}
4. c3 {[%clk 0:02:56.7]} 4... Qb6 {[%clk 0:02:57.4]} 5. Qb3 {[%clk 0:02:51.9]}
5... c4 {[%clk 0:02:38.8]} 6. Qc2 {[%clk 0:02:49.6]} 6... g6 {[%clk 0:02:38.7]}
7. Nd2 {[%clk 0:02:47.9]} 7... Bf5 {[%clk 0:02:37.8]} 8. Qc1 {[%clk 0:02:47.6]}
8... Nc6 {[%clk 0:02:36.5]} 9. h3 {[%clk 0:02:47.6]} 9... h5 {[%clk 0:02:35.6]}
10. Ngf3 {[%clk 0:02:47.4]} 10... Bg7 {[%clk 0:02:35.7]} 11. Be2 {[%clk
0:02:46.8]} 11... O-O {[%clk 0:02:35.4]} 12. O-O {[%clk 0:02:46.4]} 12... Qd8
{[%clk 0:02:34]} 13. Bd1 {[%clk 0:02:44.9]} 13... b5 {[%clk 0:02:32.4]} 14. Re1
{[%clk 0:02:41.6]} 14... b4 {[%clk 0:02:26.5]} 15. Ba4 {[%clk 0:02:40.6]} 15...
bxc3 {[%clk 0:02:14.7]} 16. Bxc6 {[%clk 0:02:30.2]} 16... cxd2 {[%clk
0:02:14.5]} 17. Nxd2 {[%clk 0:02:31.1]} 17... Rc8 {[%clk 0:01:54.3]} 18. Bb7
{[%clk 0:02:30.9]} 18... Rc7 {[%clk 0:01:53]} 19. Bxc7 {[%clk 0:02:24.2]} 19...
Qxc7 {[%clk 0:01:53.9]} 20. e4 {[%clk 0:02:24.5]} 20... dxe4 {[%clk 0:01:41.6]}
21. Bxe4 {[%clk 0:02:20.4]} 21... Nxe4 {[%clk 0:01:37.1]} 22. Nxe4 {[%clk
0:02:21.3]} 22... Bxd4 {[%clk 0:01:37.2]} 23. Qc2 {[%clk 0:02:00.1]} 23... Rb8
{[%clk 0:01:29.6]} 24. Rab1 {[%clk 0:01:56.5]} 24... Qf4 {[%clk 0:00:52.3]} 25.
b3 {[%clk 0:01:32.5]} 25... cxb3 {[%clk 0:00:45.1]} 26. axb3 {[%clk 0:01:31.2]}
26... Rc8 {[%clk 0:00:43.7]} 27. Qe2 {[%clk 0:01:16.6]} 27... e5 {[%clk
0:00:19.3]} 28. g3 {[%clk 0:01:04]} 28... Qh6 {[%clk 0:00:03]} 29. Rbd1 {[%clk
0:00:56.8]} 29... Kg7 {[%clk 0:00:02.9]} 30. Nd6 {[%clk 0:00:52.8]} 1-0

[Event "*** Titled Tuesday Blitz"]
[Site "Chess.com"]
[Date "2020.05.12"]
[Round "4"]
[White "AsaHoffmann"]
[Black "DonPreuss"]
[Result "0-1"]
[WhiteElo "2390"]
[BlackElo "2183"]
[TimeControl "180+1"]
[EndTime "10:38:03 PDT"]
[Termination "DonPreuss won by resignation"]

1. d4 {[%clk 0:02:52.9]} 1... Nc6 {[%clk 0:02:59.9]} 2. e3 {[%clk 0:02:50.6]}
2... e5 {[%clk 0:02:56.8]} 3. d5 {[%clk 0:02:48.5]} 3... Nce7 {[%clk 0:02:56.8]}
4. c4 {[%clk 0:02:48]} 4... Ng6 {[%clk 0:02:56.6]} 5. Nc3 {[%clk 0:02:47.3]}
5... d6 {[%clk 0:02:48.3]} 6. Bd3 {[%clk 0:02:44.6]} 6... f5 {[%clk 0:02:43.7]}
7. f3 {[%clk 0:02:43.8]} 7... Nf6 {[%clk 0:02:42]} 8. Qc2 {[%clk 0:02:41.1]}
8... Be7 {[%clk 0:02:36.6]} 9. h4 {[%clk 0:02:38.1]} 9... O-O {[%clk 0:02:17.1]}
10. Bxf5 {[%clk 0:02:28]} 10... e4 {[%clk 0:01:46.1]} 11. Bxg6 {[%clk
0:02:17.3]} 11... hxg6 {[%clk 0:01:39.1]} 12. f4 {[%clk 0:02:10.3]} 12... Nh5
{[%clk 0:01:29.8]} 13. Nge2 {[%clk 0:01:52.6]} 13... Bxh4+ {[%clk 0:01:28]} 14.
Kd1 {[%clk 0:01:51.8]} 14... Bg4 {[%clk 0:01:21.6]} 15. Bd2 {[%clk 0:01:36.2]}
15... Ng3 {[%clk 0:01:09.5]} 16. Rg1 {[%clk 0:01:30]} 16... Qe7 {[%clk 0:00:57]}
17. Be1 {[%clk 0:01:27.3]} 17... Rae8 {[%clk 0:00:47.2]} 18. Bxg3 {[%clk
0:01:22.3]} 18... Bxg3 {[%clk 0:00:47.3]} 19. Qd2 {[%clk 0:01:21.8]} 19... g5
{[%clk 0:00:43]} 20. Kc2 {[%clk 0:01:18.8]} 20... gxf4 {[%clk 0:00:42.3]} 21.
Nxf4 {[%clk 0:01:16.7]} 21... Rxf4 {[%clk 0:00:28.4]} 22. exf4 {[%clk
0:01:15.9]} 22... e3 {[%clk 0:00:28.7]} 23. Qd3 {[%clk 0:01:14.9]} 23... Rf8
{[%clk 0:00:23.7]} 24. Rgf1 {[%clk 0:01:10.3]} 24... Bf5 {[%clk 0:00:23.7]} 25.
Rae1 {[%clk 0:01:06.9]} 25... Bxd3+ {[%clk 0:00:23.5]} 26. Kxd3 {[%clk
0:01:06.3]} 26... Bxf4 {[%clk 0:00:21.3]} 27. Rf3 {[%clk 0:01:04.6]} 27... Bh6
{[%clk 0:00:19.8]} 28. Ne4 {[%clk 0:01:01.4]} 28... Qe5 {[%clk 0:00:19.1]} 29.
Rxf8+ {[%clk 0:00:58.1]} 29... Kxf8 {[%clk 0:00:18.5]} 30. Rf1+ {[%clk
0:00:56.9]} 30... Kg8 {[%clk 0:00:18.6]} 31. Rf3 {[%clk 0:00:53.7]} 31... Qxb2
{[%clk 0:00:18.3]} 32. Nc3 {[%clk 0:00:50.9]} 32... Qd2+ {[%clk 0:00:17.7]} 33.
Ke4 {[%clk 0:00:50.4]} 33... Qxc3 {[%clk 0:00:17.5]} 34. Kf5 {[%clk 0:00:47]}
34... Qd2 {[%clk 0:00:16.3]} 35. Ke6 {[%clk 0:00:44.9]} 35... e2 {[%clk
0:00:15.9]} 36. Kd7 {[%clk 0:00:43.9]} 36... e1=Q {[%clk 0:00:15.9]} 0-1

[Event "*** Titled Tuesday Blitz"]
[Site "Chess.com"]
[Date "2020.05.12"]
[Round "4"]
[White "AndrewMaco"]
[Black "rpragchess"]
[Result "1-0"]
[WhiteElo "2560"]
[BlackElo "2883"]
[TimeControl "180+1"]
[EndTime "10:38:05 PDT"]
[Termination "AndrewMaco won by resignation"]

1. e4 {[%clk 0:03:00.9]} 1... c5 {[%clk 0:02:59.7]} 2. Nf3 {[%clk 0:03:00.7]}
2... e6 {[%clk 0:03:00.2]} 3. g3 {[%clk 0:03:00.4]} 3... Nc6 {[%clk 0:02:59.6]}
4. Bg2 {[%clk 0:03:00.7]} 4... Nf6 {[%clk 0:03:00]} 5. Nc3 {[%clk 0:03:00.9]}
5... d6 {[%clk 0:03:00]} 6. O-O {[%clk 0:03:00.5]} 6... Be7 {[%clk 0:03:00.1]}
7. Qe2 {[%clk 0:02:53.6]} 7... O-O {[%clk 0:02:46.7]} 8. e5 {[%clk 0:02:52.8]}
8... dxe5 {[%clk 0:02:46.4]} 9. Nxe5 {[%clk 0:02:53.7]} 9... Nd4 {[%clk
0:02:46.9]} 10. Qd1 {[%clk 0:02:52]} 10... Qc7 {[%clk 0:02:44.4]} 11. Re1 {[%clk
0:02:50.5]} 11... Bd6 {[%clk 0:02:40.5]} 12. Nc4 {[%clk 0:02:50.5]} 12... e5
{[%clk 0:02:40.6]} 13. h3 {[%clk 0:02:16.2]} 13... Rb8 {[%clk 0:02:05.4]} 14. a4
{[%clk 0:02:13.1]} 14... e4 {[%clk 0:01:19.6]} 15. Nxd6 {[%clk 0:02:03.3]} 15...
Qxd6 {[%clk 0:01:12.6]} 16. d3 {[%clk 0:02:02.5]} 16... exd3 {[%clk 0:00:43.6]}
17. Bf4 {[%clk 0:02:01.4]} 17... Qb6 {[%clk 0:00:43.7]} 18. Bxb8 {[%clk
0:01:54.4]} 18... dxc2 {[%clk 0:00:43.3]} 19. Qc1 {[%clk 0:01:47.7]} 19... Bf5
{[%clk 0:00:42.2]} 20. Be5 {[%clk 0:01:39.3]} 20... Nb3 {[%clk 0:00:35.4]} 21.
Qf4 {[%clk 0:01:37.1]} 21... Bg6 {[%clk 0:00:14.8]} 22. Bxf6 {[%clk 0:01:31]}
22... Qxf6 {[%clk 0:00:14.7]} 23. Qxf6 {[%clk 0:01:30.3]} 23... gxf6 {[%clk
0:00:15.6]} 24. Be4 {[%clk 0:01:26.5]} 24... Bxe4 {[%clk 0:00:05.7]} 25. Nxe4
{[%clk 0:01:25]} 25... Rd8 {[%clk 0:00:05.8]} 26. Nc3 {[%clk 0:01:15.2]} 26...
a6 {[%clk 0:00:03.9]} 27. Rac1 {[%clk 0:01:11.4]} 27... Rd2 {[%clk 0:00:03]} 28.
Kg2 {[%clk 0:01:06]} 28... b5 {[%clk 0:00:02.1]} 29. axb5 {[%clk 0:01:05.3]}
29... axb5 {[%clk 0:00:03]} 30. Nxb5 {[%clk 0:00:51.7]} 30... Nxc1 {[%clk
0:00:01.3]} 31. Rxc1 {[%clk 0:00:51.3]} 1-0